[Event "Early-Titled-Tuesday-Blitz-April-23-2024"]
[Site "Chess.com"]
[Date "2024.04.23"]
[Round "8"]
[White "jinbojinbo"]
[Black "Lady_Nika"]
[Result "1-0"]
[WhiteElo "2648"]
[BlackElo "2471"]
[TimeControl "180+1"]
[EndTime "9:33:39 PDT"]
[Termination "jinbojinbo won by checkmate"]

1. c4 {[%clk 0:03:00.9]} 1... c5 {[%clk 0:02:58]} 2. Nc3 {[%clk 0:03:00.5]} 2...
Nc6 {[%clk 0:02:58]} 3. Nf3 {[%clk 0:02:59.7]} 3... g6 {[%clk 0:02:57.5]} 4. d4
{[%clk 0:02:59.3]} 4... cxd4 {[%clk 0:02:57.7]} 5. Nxd4 {[%clk 0:03:00.2]} 5...
Bg7 {[%clk 0:02:58.4]} 6. e3 {[%clk 0:02:59.1]} 6... d6 {[%clk 0:02:58.5]} 7.
Be2 {[%clk 0:02:56.6]} 7... Bd7 {[%clk 0:02:58.7]} 8. O-O {[%clk 0:02:56.2]}
8... Nf6 {[%clk 0:02:58.4]} 9. b3 {[%clk 0:02:54.6]} 9... O-O {[%clk 0:02:58.2]}
10. Bb2 {[%clk 0:02:54.5]} 10... a6 {[%clk 0:02:58.6]} 11. Bf3 {[%clk
0:02:51.2]} 11... Rc8 {[%clk 0:02:58.6]} 12. Rc1 {[%clk 0:02:48.4]} 12... Qa5
{[%clk 0:02:56.6]} 13. h3 {[%clk 0:02:41.5]} 13... Qg5 {[%clk 0:02:39.2]} 14.
Kh1 {[%clk 0:02:38.1]} 14... Rfd8 {[%clk 0:02:11.3]} 15. Qe2 {[%clk 0:02:35.2]}
15... e5 {[%clk 0:02:07]} 16. Nxc6 {[%clk 0:02:31.6]} 16... bxc6 {[%clk
0:02:07.9]} 17. Rfd1 {[%clk 0:02:14.1]} 17... Be6 {[%clk 0:02:07.4]} 18. Na4
{[%clk 0:02:08.8]} 18... d5 {[%clk 0:02:01.1]} 19. cxd5 {[%clk 0:01:31.5]} 19...
cxd5 {[%clk 0:01:58.2]} 20. Rxc8 {[%clk 0:01:32.4]} 20... Rxc8 {[%clk
0:01:51.8]} 21. Qxa6 {[%clk 0:01:25.7]} 21... e4 {[%clk 0:01:36.2]} 22. Be2
{[%clk 0:01:23.7]} 22... Qh4 {[%clk 0:01:28.2]} 23. Kg1 {[%clk 0:01:04.7]} 23...
h5 {[%clk 0:01:23.1]} 24. Rc1 {[%clk 0:00:54.6]} 24... Rxc1+ {[%clk 0:01:17.6]}
25. Bxc1 {[%clk 0:00:55.5]} 25... Qg5 {[%clk 0:01:17.4]} 26. Kf1 {[%clk
0:00:52.6]} 26... d4 {[%clk 0:01:13]} 27. Qb5 {[%clk 0:00:44]} 27... Qh6 {[%clk
0:01:08.9]} 28. Qb8+ {[%clk 0:00:41.8]} 28... Kh7 {[%clk 0:01:02.5]} 29. Nc5
{[%clk 0:00:38.1]} 29... d3 {[%clk 0:01:01.3]} 30. Bd1 {[%clk 0:00:37.4]} 30...
Qg5 {[%clk 0:00:57]} 31. Nxe6 {[%clk 0:00:36.4]} 31... fxe6 {[%clk 0:00:57.9]}
32. Bd2 {[%clk 0:00:30.4]} 32... Qc5 {[%clk 0:00:49]} 33. Qb4 {[%clk 0:00:24.7]}
33... Qf5 {[%clk 0:00:46.3]} 34. a4 {[%clk 0:00:20.6]} 34... Nd5 {[%clk
0:00:46.2]} 35. Qb7 {[%clk 0:00:20.8]} 35... Kh6 {[%clk 0:00:39.6]} 36. a5
{[%clk 0:00:20]} 36... Nc3 {[%clk 0:00:33]} 37. Bxc3 {[%clk 0:00:19.4]} 37...
Bxc3 {[%clk 0:00:32.7]} 38. a6 {[%clk 0:00:16.9]} 38... Qa5 {[%clk 0:00:25.3]}
39. Qxe4 {[%clk 0:00:15.7]} 39... Qxa6 {[%clk 0:00:20.3]} 40. Qf4+ {[%clk
0:00:15.8]} 40... g5 {[%clk 0:00:14.4]} 41. Qf7 {[%clk 0:00:11.5]} 41... h4
{[%clk 0:00:05.5]} 42. Qh5+ {[%clk 0:00:10.8]} 42... Kg7 {[%clk 0:00:05.4]} 43.
Qxg5+ {[%clk 0:00:11]} 43... Kf7 {[%clk 0:00:06]} 44. Qh5+ {[%clk 0:00:10.9]}
44... Kg8 {[%clk 0:00:05.1]} 45. Qg4+ {[%clk 0:00:10.6]} 45... Kf7 {[%clk
0:00:04.4]} 46. Qf4+ {[%clk 0:00:10.5]} 46... Ke8 {[%clk 0:00:03.2]} 47. Qa4+
{[%clk 0:00:08.5]} 47... Qxa4 {[%clk 0:00:02.6]} 48. bxa4 {[%clk 0:00:09.4]}
48... Kd7 {[%clk 0:00:03.1]} 49. g3 {[%clk 0:00:06]} 49... hxg3 {[%clk
0:00:03.1]} 50. fxg3 {[%clk 0:00:06.9]} 50... Ke7 {[%clk 0:00:03.4]} 51. h4
{[%clk 0:00:06.8]} 51... Kf6 {[%clk 0:00:03.7]} 52. Kf2 {[%clk 0:00:07.3]} 52...
Ba5 {[%clk 0:00:02]} 53. Kf3 {[%clk 0:00:07.2]} 53... d2 {[%clk 0:00:02.9]} 54.
g4 {[%clk 0:00:06.1]} 54... Bc7 {[%clk 0:00:02.8]} 55. g5+ {[%clk 0:00:05.4]}
55... Kg6 {[%clk 0:00:02.9]} 56. Kg4 {[%clk 0:00:05.2]} 56... Ba5 {[%clk
0:00:03.1]} 57. h5+ {[%clk 0:00:05.3]} 57... Kg7 {[%clk 0:00:03.3]} 58. h6+
{[%clk 0:00:05.8]} 58... Kg6 {[%clk 0:00:03.4]} 59. Bc2+ {[%clk 0:00:05.7]}
59... Kf7 {[%clk 0:00:03.8]} 60. g6+ {[%clk 0:00:05.2]} 60... Kf6 {[%clk
0:00:04.2]} 61. g7 {[%clk 0:00:05.5]} 61... Kf7 {[%clk 0:00:04.5]} 62. Kf3
{[%clk 0:00:03.7]} 62... e5 {[%clk 0:00:03.6]} 63. Ke2 {[%clk 0:00:03.5]} 63...
Kg8 {[%clk 0:00:02.6]} 64. Bb3+ {[%clk 0:00:03.7]} 64... Kh7 {[%clk 0:00:02.2]}
65. g8=Q+ {[%clk 0:00:04]} 65... Kxh6 {[%clk 0:00:03.1]} 66. Bf7 {[%clk
0:00:03.9]} 66... d1=Q+ {[%clk 0:00:02.3]} 67. Kxd1 {[%clk 0:00:04.2]} 67... e4
{[%clk 0:00:03.1]} 68. Qg6# {[%clk 0:00:04.4]} 1-0

[Event "Early-Titled-Tuesday-Blitz-April-23-2024"]
[Site "Chess.com"]
[Date "2024.04.23"]
[Round "8"]
[White "Hikaru"]
[Black "MagnusCarlsen"]
[Result "1/2-1/2"]
[WhiteElo "3298"]
[BlackElo "3225"]
[TimeControl "180+1"]
[EndTime "9:33:43 PDT"]
[Termination "Game drawn by repetition"]

1. e4 {[%clk 0:03:00.9]} 1... e6 {[%clk 0:02:44]} 2. d4 {[%clk 0:02:49.3]} 2...
d5 {[%clk 0:02:44.6]} 3. exd5 {[%clk 0:02:49.8]} 3... exd5 {[%clk 0:02:45]} 4.
Nf3 {[%clk 0:02:50.4]} 4... Nf6 {[%clk 0:02:44.7]} 5. Bd3 {[%clk 0:02:49.9]}
5... Bd6 {[%clk 0:02:44.6]} 6. Qe2+ {[%clk 0:02:50]} 6... Qe7 {[%clk 0:02:43.5]}
7. Qxe7+ {[%clk 0:02:50]} 7... Kxe7 {[%clk 0:02:44.4]} 8. Nc3 {[%clk 0:02:49.7]}
8... c6 {[%clk 0:02:43.2]} 9. O-O {[%clk 0:02:49.7]} 9... Re8 {[%clk 0:02:43]}
10. Bg5 {[%clk 0:02:47.6]} 10... h6 {[%clk 0:02:33.8]} 11. Rae1+ {[%clk
0:02:43.4]} 11... Be6 {[%clk 0:02:33.6]} 12. Bd2 {[%clk 0:02:41.4]} 12... Kf8
{[%clk 0:02:29.9]} 13. Ne5 {[%clk 0:02:41.5]} 13... a6 {[%clk 0:01:53.1]} 14. f4
{[%clk 0:02:32.9]} 14... c5 {[%clk 0:01:53.1]} 15. f5 {[%clk 0:02:32.7]} 15...
Bc8 {[%clk 0:01:52.7]} 16. Bf4 {[%clk 0:02:31.6]} 16... Rd8 {[%clk 0:01:30.1]}
17. Na4 {[%clk 0:02:22.3]} 17... c4 {[%clk 0:01:30.2]} 18. Be2 {[%clk
0:02:21.9]} 18... Bxf5 {[%clk 0:01:17.5]} 19. Nb6 {[%clk 0:02:17.9]} 19... Ra7
{[%clk 0:01:13.5]} 20. c3 {[%clk 0:02:05.1]} 20... Be6 {[%clk 0:00:54.5]} 21.
Bxh6 {[%clk 0:01:49.4]} 21... Ne4 {[%clk 0:00:18.2]} 22. Bf4 {[%clk 0:01:32.7]}
22... Nc6 {[%clk 0:00:18]} 23. Na4 {[%clk 0:01:09.5]} 23... Nxe5 {[%clk
0:00:13.9]} 24. dxe5 {[%clk 0:01:09.9]} 24... Bc7 {[%clk 0:00:09.1]} 25. Be3
{[%clk 0:01:08.9]} 25... Raa8 {[%clk 0:00:09.3]} 26. Bf3 {[%clk 0:01:09.5]}
26... b5 {[%clk 0:00:07.6]} 27. Nc5 {[%clk 0:01:05.5]} 27... Nxc5 {[%clk
0:00:07.9]} 28. Bxc5+ {[%clk 0:01:06.4]} 28... Kg8 {[%clk 0:00:08.3]} 29. Bd4
{[%clk 0:01:02.6]} 29... Rab8 {[%clk 0:00:08.5]} 30. a3 {[%clk 0:00:56.5]} 30...
a5 {[%clk 0:00:09]} 31. Kf2 {[%clk 0:00:56.1]} 31... b4 {[%clk 0:00:09.4]} 32.
axb4 {[%clk 0:00:56.7]} 32... axb4 {[%clk 0:00:10.3]} 33. Ke3 {[%clk 0:00:56.9]}
33... bxc3 {[%clk 0:00:10.4]} 34. bxc3 {[%clk 0:00:57.8]} 34... Rb3 {[%clk
0:00:10.8]} 35. Ra1 {[%clk 0:00:53.7]} 35... Bb6 {[%clk 0:00:10.5]} 36. Bxb6
{[%clk 0:00:53.1]} 36... Rxb6 {[%clk 0:00:11.4]} 37. Rfb1 {[%clk 0:00:41]} 37...
Rdb8 {[%clk 0:00:10.4]} 38. Rxb6 {[%clk 0:00:40.1]} 38... Rxb6 {[%clk
0:00:11.3]} 39. Ra2 {[%clk 0:00:40.6]} 39... Rb1 {[%clk 0:00:07.3]} 40. Kd4
{[%clk 0:00:39.8]} 40... Rc1 {[%clk 0:00:06.3]} 41. h4 {[%clk 0:00:29.2]} 41...
Kh7 {[%clk 0:00:03.6]} 42. Ra5 {[%clk 0:00:20.6]} 42... Rh1 {[%clk 0:00:03.8]}
43. Bxd5 {[%clk 0:00:17.9]} 43... Rxh4+ {[%clk 0:00:03.9]} 44. Kc5 {[%clk
0:00:18]} 44... Bxd5 {[%clk 0:00:03.7]} 45. Kxd5 {[%clk 0:00:18.9]} 45... Rg4
{[%clk 0:00:03.9]} 46. Ra2 {[%clk 0:00:15.9]} 46... Kg6 {[%clk 0:00:04.4]} 47.
Rf2 {[%clk 0:00:16.5]} 47... Rh4 {[%clk 0:00:04.6]} 48. Rf3 {[%clk 0:00:15.9]}
48... Rg4 {[%clk 0:00:02.6]} 49. g3 {[%clk 0:00:16.5]} 49... Rg5 {[%clk
0:00:03.3]} 50. Re3 {[%clk 0:00:12.3]} 50... Rg4 {[%clk 0:00:02.7]} 51. e6
{[%clk 0:00:11.9]} 51... fxe6+ {[%clk 0:00:03.6]} 52. Rxe6+ {[%clk 0:00:12.4]}
52... Kf5 {[%clk 0:00:04.1]} 53. Re5+ {[%clk 0:00:12.6]} 53... Kf6 {[%clk
0:00:04.2]} 54. Re3 {[%clk 0:00:13.3]} 54... Kf5 {[%clk 0:00:04.2]} 55. Rf3+
{[%clk 0:00:13.9]} 55... Kg6 {[%clk 0:00:03.7]} 56. Ke5 {[%clk 0:00:14.6]} 56...
Rg5+ {[%clk 0:00:03.8]} 57. Ke4 {[%clk 0:00:13.8]} 57... Rg4+ {[%clk 0:00:03.3]}
58. Kd5 {[%clk 0:00:14.5]} 58... Kh5 {[%clk 0:00:02.4]} 59. Re3 {[%clk
0:00:14.7]} 59... Kg5 {[%clk 0:00:02.8]} 60. Ke6 {[%clk 0:00:13.8]} 60... Kg6
{[%clk 0:00:03.2]} 61. Ke7 {[%clk 0:00:13.7]} 61... Rg5 {[%clk 0:00:02.8]} 62.
Kd6 {[%clk 0:00:13.8]} 62... Rg4 {[%clk 0:00:02.7]} 63. Kd5 {[%clk 0:00:14.2]}
63... Kh5 {[%clk 0:00:02.8]} 64. Kc6 {[%clk 0:00:10.7]} 64... Kg6 {[%clk
0:00:03.2]} 65. Kc5 {[%clk 0:00:10.9]} 65... Kh5 {[%clk 0:00:04]} 66. Kd5 {[%clk
0:00:08.4]} 66... Kg6 {[%clk 0:00:04.6]} 67. Ke5 {[%clk 0:00:08.6]} 67... Kg5
{[%clk 0:00:04.3]} 68. Rf3 {[%clk 0:00:08.6]} 68... Kg6 {[%clk 0:00:04.7]} 69.
Kd6 {[%clk 0:00:08.6]} 69... Kg5 {[%clk 0:00:05]} 70. Ke6 {[%clk 0:00:08.8]}
70... Kg6 {[%clk 0:00:05.6]} 71. Ke5 {[%clk 0:00:08.9]} 71... Kg5 {[%clk
0:00:05.2]} 72. Rf7 {[%clk 0:00:06.1]} 72... Kg6 {[%clk 0:00:04.7]} 73. Rc7
{[%clk 0:00:06.3]} 73... Rxg3 {[%clk 0:00:04.8]} 74. Rxc4 {[%clk 0:00:07]} 74...
Re3+ {[%clk 0:00:04.6]} 75. Kd6 {[%clk 0:00:07.4]} 75... Kf5 {[%clk 0:00:04.2]}
76. Rc5+ {[%clk 0:00:08.1]} 76... Kf4 {[%clk 0:00:04.2]} 77. c4 {[%clk
0:00:08.8]} 77... g5 {[%clk 0:00:04.7]} 78. Rc7 {[%clk 0:00:09.5]} 78... Rd3+
{[%clk 0:00:05]} 79. Ke6 {[%clk 0:00:09.3]} 79... g4 {[%clk 0:00:05.6]} 80. Rg7
{[%clk 0:00:09.2]} 80... g3 {[%clk 0:00:05.6]} 81. c5 {[%clk 0:00:09.9]} 81...
Rc3 {[%clk 0:00:06.3]} 82. Kd6 {[%clk 0:00:09.9]} 82... Kf3 {[%clk 0:00:06.9]}
83. c6 {[%clk 0:00:10.1]} 83... g2 {[%clk 0:00:07.6]} 84. c7 {[%clk 0:00:10.2]}
84... Rxc7 {[%clk 0:00:08.5]} 85. Kxc7 {[%clk 0:00:10]} 85... Kf2 {[%clk
0:00:09.4]} 86. Rf7+ {[%clk 0:00:10.5]} 86... Ke2 {[%clk 0:00:09.8]} 87. Rg7
{[%clk 0:00:11.1]} 87... Kf2 {[%clk 0:00:10.7]} 88. Rf7+ {[%clk 0:00:10.2]}
88... Ke2 {[%clk 0:00:11]} 89. Rg7 {[%clk 0:00:10.7]} 89... Kf2 {[%clk
0:00:11.9]} 1/2-1/2

[Event "Early-Titled-Tuesday-Blitz-April-23-2024"]
[Site "Chess.com"]
[Date "2024.04.23"]
[Round "8"]
[White "H3nriqueTV"]
[Black "JonasEilenberg"]
[Result "1/2-1/2"]
[WhiteElo "2329"]
[BlackElo "2729"]
[TimeControl "180+1"]
[EndTime "9:33:44 PDT"]
[Termination "Game drawn by stalemate"]

1. e4 {[%clk 0:02:30.3]} 1... c5 {[%clk 0:03:00]} 2. Nf3 {[%clk 0:02:29.9]} 2...
Nc6 {[%clk 0:03:00.6]} 3. d4 {[%clk 0:02:28.7]} 3... cxd4 {[%clk 0:03:01.5]} 4.
Nxd4 {[%clk 0:02:29]} 4... Nf6 {[%clk 0:03:02.2]} 5. Nc3 {[%clk 0:02:29.1]} 5...
e5 {[%clk 0:03:02.9]} 6. Ndb5 {[%clk 0:02:29.1]} 6... d6 {[%clk 0:03:03.6]} 7.
Na3 {[%clk 0:02:21.7]} 7... Be6 {[%clk 0:02:54.4]} 8. Bg5 {[%clk 0:02:18.4]}
8... Rc8 {[%clk 0:02:48.1]} 9. Nd5 {[%clk 0:02:03.6]} 9... Bxd5 {[%clk
0:02:37.7]} 10. exd5 {[%clk 0:02:03.5]} 10... Qa5+ {[%clk 0:02:36]} 11. c3
{[%clk 0:01:54.1]} 11... Qxd5 {[%clk 0:02:33.8]} 12. Qxd5 {[%clk 0:01:27.9]}
12... Nxd5 {[%clk 0:02:34.7]} 13. O-O-O {[%clk 0:01:27.8]} 13... Nb6 {[%clk
0:02:30.9]} 14. Nb5 {[%clk 0:01:26.4]} 14... d5 {[%clk 0:02:23.4]} 15. g3 {[%clk
0:01:18]} 15... a6 {[%clk 0:02:19.6]} 16. Bh3 {[%clk 0:01:16.6]} 16... axb5
{[%clk 0:02:09.3]} 17. Bxc8 {[%clk 0:01:16.7]} 17... Nxc8 {[%clk 0:02:10.2]} 18.
Rxd5 {[%clk 0:01:17.1]} 18... f6 {[%clk 0:02:10.7]} 19. Be3 {[%clk 0:01:14.9]}
19... b4 {[%clk 0:02:00.4]} 20. f4 {[%clk 0:00:57.3]} 20... bxc3 {[%clk
0:01:59.7]} 21. bxc3 {[%clk 0:00:57.5]} 21... Bd6 {[%clk 0:01:56.9]} 22. Rhd1
{[%clk 0:00:55.7]} 22... Ke7 {[%clk 0:01:48.9]} 23. fxe5 {[%clk 0:00:51.6]}
23... fxe5 {[%clk 0:01:43.8]} 24. Kc2 {[%clk 0:00:47.3]} 24... Rf8 {[%clk
0:01:31.7]} 25. Rb5 {[%clk 0:00:40.9]} 25... Rf3 {[%clk 0:01:31.3]} 26. Rxb7+
{[%clk 0:00:40.1]} 26... Ke6 {[%clk 0:01:31.8]} 27. Bg1 {[%clk 0:00:36.7]} 27...
N8e7 {[%clk 0:01:29.5]} 28. a4 {[%clk 0:00:34]} 28... Nd5 {[%clk 0:01:26.9]} 29.
Rd3 {[%clk 0:00:30.2]} 29... Rf1 {[%clk 0:01:27]} 30. Rd1 {[%clk 0:00:25.3]}
30... Rxd1 {[%clk 0:01:00.8]} 31. Kxd1 {[%clk 0:00:24.8]} 31... Nxc3+ {[%clk
0:01:01.7]} 32. Kc2 {[%clk 0:00:24.5]} 32... Nxa4 {[%clk 0:01:02.6]} 33. Rxg7
{[%clk 0:00:23.1]} 33... Nc5 {[%clk 0:00:53.2]} 34. Rxh7 {[%clk 0:00:22.1]}
34... Ne4 {[%clk 0:00:52.2]} 35. Rh6+ {[%clk 0:00:21.7]} 35... Kd5 {[%clk
0:00:51.5]} 36. g4 {[%clk 0:00:20.6]} 36... Nb4+ {[%clk 0:00:49.2]} 37. Kb3
{[%clk 0:00:20.2]} 37... Nd3 {[%clk 0:00:49.5]} 38. Be3 {[%clk 0:00:19]} 38...
Nf4 {[%clk 0:00:35.5]} 39. Bxf4 {[%clk 0:00:18]} 39... exf4 {[%clk 0:00:36.4]}
40. g5 {[%clk 0:00:17.9]} 40... f3 {[%clk 0:00:34.9]} 41. Rh7 {[%clk 0:00:15.8]}
41... Ke6 {[%clk 0:00:27.7]} 42. Ra7 {[%clk 0:00:13.9]} 42... f2 {[%clk
0:00:22.1]} 43. Ra1 {[%clk 0:00:13.9]} 43... f1=Q {[%clk 0:00:22.6]} 44. Rxf1
{[%clk 0:00:13.9]} 44... Nd2+ {[%clk 0:00:23.3]} 45. Kc2 {[%clk 0:00:14.5]}
45... Nxf1 {[%clk 0:00:24.2]} 46. h4 {[%clk 0:00:14]} 46... Kf5 {[%clk
0:00:23.5]} 47. Kd3 {[%clk 0:00:13.8]} 47... Ng3 {[%clk 0:00:23.1]} 48. Ke3
{[%clk 0:00:14]} 48... Kg4 {[%clk 0:00:22.3]} 49. Kd4 {[%clk 0:00:11.9]} 49...
Kxh4 {[%clk 0:00:21.4]} 50. g6 {[%clk 0:00:12.5]} 50... Bf8 {[%clk 0:00:21.7]}
51. Ke5 {[%clk 0:00:12.5]} 51... Kg5 {[%clk 0:00:21.6]} 52. g7 {[%clk
0:00:12.4]} 52... Bxg7+ {[%clk 0:00:21.7]} 53. Kd5 {[%clk 0:00:12]} 53... Nf5
{[%clk 0:00:22.2]} 54. Ke6 {[%clk 0:00:12.6]} 54... Kf4 {[%clk 0:00:21.1]} 55.
Kd5 {[%clk 0:00:13.5]} 55... Be5 {[%clk 0:00:21.2]} 56. Ke6 {[%clk 0:00:13.5]}
56... Ke4 {[%clk 0:00:21.3]} 57. Kf7 {[%clk 0:00:13.4]} 57... Nd4 {[%clk
0:00:20.6]} 58. Ke7 {[%clk 0:00:12.9]} 58... Kd5 {[%clk 0:00:20.9]} 59. Kf7
{[%clk 0:00:13.4]} 59... Ne6 {[%clk 0:00:20.1]} 60. Ke7 {[%clk 0:00:13.1]} 60...
Nf4 {[%clk 0:00:19.3]} 61. Kf7 {[%clk 0:00:13.3]} 61... Ke4 {[%clk 0:00:19.9]}
62. Ke7 {[%clk 0:00:13.2]} 62... Kf5 {[%clk 0:00:20.6]} 63. Kd7 {[%clk
0:00:13.7]} 63... Ne6 {[%clk 0:00:20]} 64. Kc6 {[%clk 0:00:14.6]} 64... Ke4
{[%clk 0:00:20.1]} 65. Kd7 {[%clk 0:00:15]} 65... Kd5 {[%clk 0:00:20.7]} 66. Ke7
{[%clk 0:00:15]} 66... Nd4 {[%clk 0:00:19.9]} 67. Kf7 {[%clk 0:00:15.1]} 67...
Ke4 {[%clk 0:00:19.5]} 68. Kg6 {[%clk 0:00:13.2]} 68... Kf4 {[%clk 0:00:19.3]}
69. Kf7 {[%clk 0:00:13.1]} 69... Kf5 {[%clk 0:00:19.8]} 70. Ke7 {[%clk
0:00:13.2]} 70... Ne6 {[%clk 0:00:19.3]} 71. Kd7 {[%clk 0:00:13.6]} 71... Nd4
{[%clk 0:00:19.4]} 72. Ke7 {[%clk 0:00:12.7]} 72... Kg6 {[%clk 0:00:20.2]} 73.
Kd7 {[%clk 0:00:13]} 73... Kf6 {[%clk 0:00:20.7]} 74. Kc8 {[%clk 0:00:12.2]}
74... Ke6 {[%clk 0:00:21]} 75. Kb7 {[%clk 0:00:13.1]} 75... Kd6 {[%clk 0:00:21]}
76. Kb6 {[%clk 0:00:13.7]} 76... Nc6 {[%clk 0:00:20.8]} 77. Kb5 {[%clk
0:00:14.6]} 77... Kd5 {[%clk 0:00:20.2]} 78. Kb6 {[%clk 0:00:13.8]} 78... Bd6
{[%clk 0:00:20]} 79. Kb5 {[%clk 0:00:13.5]} 79... Nd4+ {[%clk 0:00:18.5]} 80.
Kb6 {[%clk 0:00:12.8]} 80... Ne6 {[%clk 0:00:17.6]} 81. Kb5 {[%clk 0:00:12.8]}
81... Nc7+ {[%clk 0:00:16.7]} 82. Ka4 {[%clk 0:00:13.3]} 82... Kc4 {[%clk
0:00:16.6]} 83. Ka5 {[%clk 0:00:13.9]} 83... Bc5 {[%clk 0:00:16]} 84. Ka4 {[%clk
0:00:13.6]} 84... Bd4 {[%clk 0:00:11.6]} 85. Ka3 {[%clk 0:00:13.1]} 85... Nb5+
{[%clk 0:00:10]} 86. Ka4 {[%clk 0:00:13.6]} 86... Bb6 {[%clk 0:00:10.4]} 1/2-1/2